bitfinex/quotes_SOLUSD_20250429
["timestamp","ask_amount","ask_price","bid_price","bid_amount"]
[1745916469961,1e-08,149.15,149.14,114.69272055]
[1745916471182,1e-08,149.15,149.14,113.35228689]
[1745916480294,0.063,149.18,149.17,18.64964886]
[1745916480602,0.063,149.18,149.17,68.69763243]
[1745916482177,0.063,149.18,149.17,149.59763243]
[1745916482376,0.063,149.18,149.17,154.96105336]
[1745916483196,0.03,149.19,149.17,180.96105336]
[1745916483404,0.03,149.19,149.18,19.98973204]
[1745916483583,0.03,149.19,149.18,27.08726078]
[1745916484505,0.03,149.19,149.18,33.79057221]
[1745916485577,0.03,149.19,149.17,94.12]
[1745916485786,0.03,149.19,149.17,13.22]
[1745916487394,0.03,149.19,149.17,19.9237053]
[1745916487783,0.03,149.19,149.17,13.22]
[1745916493407,11.10920414,149.19,149.17,13.22]
[1745916494015,11.07920414,149.18,149.17,13.22]
[1745916494990,11.07920414,149.18,149.13,31.00437806]
[1745916495195,11.07920414,149.16,149.13,19.92517392]
[1745916496598,11.07920414,149.17,149.13,31.00437806]
[1745916497315,11.07920414,149.17,149.14,11.07920414]
[1745916497520,11.07920414,149.18,149.14,11.07920414]
[1745916497705,11.92094143,149.18,149.14,11.07920414]
[1745916498013,11.92094143,149.18,149.14,17.7840881]
[1745916500228,11.07920414,149.18,149.14,17.7840881]
[1745916501809,12.70870414,149.19,149.15,11.07920414]
[1745916503319,12.70870414,149.19,149.15,24.29920414]
[1745916503514,12.70870414,149.19,149.16,6.70421024]
[1745916508925,11.07920414,149.17,149.15,13.22]
[1745916509225,11.07920414,149.16,149.11,6.76927504]
[1745916509525,11.07920414,149.16,149.11,0.063]
[1745916509526,11.07920414,149.12,149.11,0.063]
[1745916516506,11.07920414,149.13,149.11,0.063]
[1745916519121,1.6621,149.14,149.11,0.063]
[1745916519313,89.0224,149.16,149.12,11.07920414]
[1745916519314,11.07920414,149.16,149.12,11.07920414]
[1745916519520,6.70411537,149.17,149.13,11.07920414]
[1745916519521,11.07920414,149.17,149.13,11.07920414]
[1745916519837,11.07920414,149.17,149.13,17.78475643]
[1745916521537,11.07920414,149.17,149.12,11.07920414]
[1745916522037,11.07920414,149.16,149.12,11.07920414]
[1745916522423,11.07920414,149.16,149.11,17.84866245]
[1745916522623,11.07920414,149.16,149.12,11.07920414]
[1745916523140,37.07920414,149.17,149.13,6.7055589]
[1745916523439,11.07920414,149.16,149.13,6.7055589]
[1745916523615,11.10920414,149.19,149.15,11.07920414]
[1745916525653,0.03,149.19,149.16,17.78341438]
[1745916527228,0.03,149.19,149.17,11.07920414]
[1745916527429,0.03,149.19,149.18,11.07920414]
[1745916527930,0.03,149.19,149.18,29.728853]
[1745916529430,0.03,149.19,149.18,36.43216443]
[1745916530047,0.03,149.19,149.18,17.78251557]
[1745916537949,0.03,149.19,149.18,36.43216443]
[1745916544852,0.03,149.19,149.18,117.33216443]
[1745916552259,0.03,149.19,149.18,87.60331143]
[1745916552451,0.03,149.19,149.18,111.90251557]
[1745916554777,0.03,149.19,149.18,130.55216443]
[1745916557063,1e-08,149.19,149.18,130.55216443]
[1745916567074,1e-08,149.19,149.18,130.55216443]
[1745916579187,1e-08,149.19,149.18,156.55216443]
[1745916580083,0.03,149.21,149.2,44.64964886]
[1745916580084,1e-08,149.21,149.2,44.64964886]
[1745916580293,1e-08,149.21,149.2,55.728853]
[1745916580488,0.063,149.24,149.21,18.64964886]
[1745916580687,0.063,149.24,149.23,11.07920414]
[1745916580898,0.063,149.24,149.23,24.27920414]
[1745916581186,0.063,149.24,149.23,130.52991846]
[1745916581187,1e-08,149.24,149.23,130.52991846]
[1745916581395,1e-08,149.24,149.23,141.6091226]
[1745916581704,1e-08,149.24,149.23,154.85050282]
[1745916583489,1e-08,149.24,149.23,141.57646228]
[1745916585487,1e-08,149.24,149.23,130.5135883]
[1745916591904,1e-08,149.24,149.23,156.5135883]
[1745916607710,1e-08,149.24,149.23,152.53260132]
[1745916612934,1e-08,149.24,149.23,107.88295246]
[1745916615224,1e-08,149.24,149.23,26.98295246]
[1745916615520,1e-08,149.24,149.23,19.90106546]
[1745916615715,1e-08,149.24,149.23,26.98295246]
[1745916623726,1e-08,149.24,149.23,13.2]
[1745916624307,1e-08,149.24,149.23,19.90106546]
[1745916625008,1e-08,149.24,149.23,26.98295246]
[1745916625808,1e-08,149.24,149.23,19.90106546]
[1745916626009,1e-08,149.24,149.23,26.98295246]
[1745916626236,1e-08,149.24,149.23,19.90106546]
[1745916627338,1e-08,149.24,149.23,6.70106546]
[1745916635421,1e-08,149.24,149.23,7.081887]
[1745916637040,1e-08,149.24,149.23,20.281887]
[1745916637648,1e-08,149.24,149.23,26.98295246]
[1745916641971,1e-08,149.24,149.23,19.90106546]
[1745916642131,1e-08,149.24,149.23,13.2]
[1745916648454,1e-08,149.24,149.23,26.98295246]
[1745916650465,1e-08,149.24,149.23,13.2]
[1745916650768,7.08188701,149.24,149.2,6.70241286]
[1745916652064,13.78250641,149.24,149.2,6.70241286]
[1745916652266,7.081887,149.21,149.19,13.2]
[1745916652651,2.48183729,149.23,149.19,13.2]
[1745916652652,7.081887,149.22,149.19,13.2]
[1745916653257,7.081887,149.22,149.19,19.90274205]
[1745916653667,7.081887,149.21,149.19,13.2]
[1745916654034,7.081887,149.22,149.19,19.9027306]
[1745916656739,7.081887,149.21,149.19,19.9027306]
[1745916658262,7.081887,149.21,149.19,13.2]
[1745916658870,7.92362429,149.2,149.17,0.063]
[1745916659058,7.081887,149.18,149.17,0.063]
[1745916661667,11.08353366,149.18,149.17,0.063]
[1745916667248,17.78684509,149.18,149.17,0.063]
[1745916667669,19.37954509,149.18,149.17,0.063]
[1745916667944,30.46307875,149.18,149.17,0.063]
[1745916668159,65.87100619,149.18,149.13,0.063]
[1745916668371,11.08353366,149.14,149.13,0.063]
[1745916668556,11.92527095,149.14,149.13,0.063]
[1745916671065,18.63038024,149.14,149.13,0.063]
[1745916676888,20.13748024,149.14,149.13,0.063]
[1745916679494,23.4511303,149.14,149.13,0.063]
[1745916679789,18.64964886,149.13,149.11,0.063]
[1745916679992,24.93584886,149.11,149.08,0.063]
[1745916680296,12.71963366,149.09,149.08,0.063]
[1745916682288,17.79089163,149.09,149.08,0.063]
[1745916683800,11.08353366,149.09,149.08,0.063]
[1745916683971,93.98353366,149.1,149.08,0.063]
[1745916684176,11.08353366,149.09,149.08,0.063]
[1745916684868,17.79089163,149.09,149.08,0.063]
[1745916685985,11.08353366,149.09,149.08,0.063]
[1745916687791,17.79089163,149.09,149.08,0.063]
[1745916689703,101.53262892,149.09,149.08,0.063]
[1745916690292,18.63262892,149.09,149.06,0.063]
[1745916690589,11.08353366,149.08,149.06,0.063]
[1745916691177,18.64964886,149.07,149.06,0.063]
[1745916691378,37.28317767,149.07,149.05,0.063]
[1745916691577,11.08353366,149.06,149.05,0.063]
[1745916693206,17.79224156,149.06,149.05,0.063]
[1745916695410,11.08353366,149.06,149.05,0.063]
[1745916699311,7.54986944,149.08,149.05,0.063]
[1745916699613,11.08353366,149.06,149.05,0.063]
[1745916700615,17.79224156,149.06,149.05,0.063]
[1745916702218,11.08353366,149.06,149.05,0.063]
[1745916704311,18.63397885,149.06,149.05,0.063]
[1745916715613,11.08353366,149.06,149.05,0.063]
[1745916715899,17.79224156,149.06,149.05,0.063]
[1745916720813,100.69224156,149.06,149.05,0.063]
[1745916727926,82.9,149.06,149.05,0.063]
[1745916728136,93.98353366,149.06,149.05,0.063]
[1745916728336,82.9,149.06,149.05,0.063]
[1745916728534,11.08353366,149.07,149.05,0.063]
[1745916728837,11.08353366,149.09,149.05,11.14653366]
[1745916729407,6.70707251,149.1,149.05,11.14653366]
[1745916729408,17.79060617,149.1,149.05,11.14653366]
[1745916729840,17.79060617,149.1,149.05,17.85545932]
[1745916730050,17.79060617,149.1,149.05,6.77192566]
[1745916730254,17.79060617,149.1,149.06,11.08353366]
[1745916731626,17.79060617,149.1,149.06,17.79216942]
[1745916731829,17.79010508,149.11,149.07,11.08353366]
[1745916732015,17.79010508,149.11,149.06,6.70863576]
[1745916732016,32.70657142,149.11,149.08,11.08353366]
[1745916733422,11.08353366,149.1,149.06,19.39546942]
[1745916735458,17.7904532,149.1,149.06,19.39546942]
[1745916736247,17.7904532,149.1,149.06,12.68683366]
[1745916738672,17.2904532,149.1,149.06,12.68683366]
[1745916739365,11.08353366,149.08,149.05,0.063]
[1745916740059,11.08353366,149.07,149.05,0.063]
[1745916743267,17.79173205,149.08,149.05,0.063]
[1745916743453,6.70819839,149.08,149.05,0.063]
[1745916743660,17.79101272,149.09,149.05,11.14653366]
[1745916745454,11.08353366,149.08,149.05,0.063]
[1745916745968,11.08353366,149.07,149.05,0.063]
[1745916746786,26.0,149.09,149.06,11.08353366]
[1745916746947,82.9,149.1,149.06,11.08353366]
[1745916747451,82.9,149.1,149.06,17.79223083]
[1745916748077,82.9,149.1,149.07,11.08353366]
[1745916748237,37.08353366,149.11,149.07,11.08353366]
[1745916748444,26.0,149.11,149.07,11.08353366]
[1745916748765,0.03,149.12,149.08,11.08353366]
[1745916749271,0.03,149.12,149.09,11.08353366]
[1745916750069,0.03,149.12,149.07,1.5675]
[1745916750070,11.08353366,149.11,149.07,12.65103366]
[1745916750447,11.08353366,149.1,149.06,11.08353366]
[1745916750649,11.11353366,149.12,149.08,11.08353366]
[1745916751571,11.11353366,149.12,149.08,17.79126412]
[1745916754181,0.03,149.12,149.09,11.08353366]
[1745916756261,0.03,149.12,149.09,17.79083518]
[1745916756766,0.03,149.12,149.09,6.70730152]
[1745916756970,0.03,149.12,149.1,11.08353366]
[1745916761073,0.03,149.12,149.09,17.79083518]
[1745916762857,11.11353366,149.12,149.07,30.99165657]
[1745916763752,11.08353366,149.11,149.07,30.99165657]
[1745916765979,11.08353366,149.1,149.07,19.90812291]
[1745916768958,11.08353366,149.09,149.07,13.2]
[1745916769164,11.08353366,149.09,149.05,11.14653366]
[1745916769365,11.08353366,149.09,149.05,0.063]
[1745916770181,11.08353366,149.09,149.05,6.77193302]
[1745916770384,11.08353366,149.08,149.05,0.063]
[1745916770583,11.08353366,149.06,149.05,0.063]
[1745916770968,11.08353366,149.08,149.05,0.063]
[1745916771285,93.98353366,149.09,149.05,11.14653366]
[1745916771485,11.08353366,149.09,149.05,11.14653366]
[1745916772288,11.08353366,149.09,149.05,17.85528448]
[1745916773284,17.79050912,149.1,149.05,0.063]
[1745916773489,11.08353366,149.09,149.05,11.14653366]
[1745916774894,11.08353366,149.09,149.05,17.85544634]
[1745916777498,11.08353366,149.08,149.05,0.063]
[1745916780678,11.08353366,149.09,149.05,11.14653366]
[1745916781671,37.08353366,149.1,149.06,11.08353366]
[1745916781896,26.0,149.1,149.06,11.08353366]
[1745916782204,26.0,149.1,149.07,11.08353366]
[1745916782700,26.0,149.1,149.07,17.79178026]
[1745916783200,26.0,149.1,149.08,11.08353366]
[1745916784403,26.0,149.1,149.07,17.79178026]
[1745916787005,26.0,149.1,149.08,11.08353366]
[1745916787607,26.0,149.1,149.07,11.08353366]
[1745916789485,37.08353366,149.1,149.06,11.08353366]
[1745916789705,11.08353366,149.09,149.05,17.85569166]
[1745916792308,17.79092509,149.09,149.05,17.85569166]
[1745916792807,17.79092509,149.09,149.05,6.772158]
[1745916793033,17.79092509,149.09,149.05,17.85569166]
[1745916793520,43.79061912,149.1,149.06,11.08353366]
[1745916795919,43.79061912,149.1,149.05,6.772158]
[1745916795920,32.70708546,149.1,149.07,11.08353366]
[1745916797914,11.08353366,149.09,149.05,17.85569166]
[1745916798424,32.70708546,149.1,149.05,17.85569166]
[1745916798607,43.79061912,149.1,149.05,17.85569166]
[1745916799521,37.08353366,149.1,149.06,11.08353366]
[1745916799709,37.08353366,149.1,149.05,6.772158]
[1745916799909,26.0,149.1,149.08,11.08353366]
[1745916800413,26.0,149.1,149.07,11.08353366]
[1745916801017,37.08353366,149.1,149.06,17.79184512]
[1745916801224,26.0,149.1,149.07,11.08353366]
[1745916803119,26.0,149.1,149.07,17.79148655]
[1745916806527,26.0,149.1,149.08,11.08353366]
[1745916808051,94.01353366,149.12,149.05,30.03494016]
[1745916808052,82.93,149.12,149.09,17.79089163]
[1745916808201,0.03,149.12,149.1,11.08353366]
[1745916810204,0.03,149.12,149.1,17.79030835]
[1745916811436,0.03,149.12,149.09,17.7907389]
[1745916813630,0.03,149.12,149.08,11.08353366]
[1745916814937,0.03,149.12,149.08,17.79132261]
[1745916815135,0.03,149.12,149.09,11.08353366]
[1745916816340,0.03,149.12,149.08,6.70778895]
[1745916816520,11.08353366,149.09,149.05,17.85554071]
[1745916817649,17.7904695,149.1,149.05,17.85554071]
[1745916818649,17.7904695,149.1,149.06,11.08353366]
[1745916819049,6.70651462,149.11,149.07,11.08353366]
[1745916819638,17.79004828,149.11,149.07,11.08353366]
[1745916819839,17.79004828,149.11,149.06,6.70851714]
[1745916819840,17.79004828,149.11,149.06,17.7920508]
[1745916821345,11.08353366,149.1,149.06,17.7920508]
[1745916821526,11.08353366,149.09,149.05,17.85563665]
[1745916821863,37.08353366,149.07,149.05,0.063]
[1745916822025,11.08353366,149.06,149.05,0.063]
[1745916823446,17.79224156,149.06,149.05,0.063]
[1745916824449,11.08353366,149.06,149.05,0.063]
[1745916829652,17.79224156,149.06,149.05,0.063]
[1745916829857,18.63397885,149.06,149.05,0.063]
[1745916832436,17.79224156,149.06,149.05,0.063]
[1745916835972,82.9,149.05,149.03,0.063]
[1745916836137,23.00880461,149.04,149.0,0.03]
[1745916836474,11.08353366,149.01,149.0,0.03]
[1745916838266,17.79449265,149.01,149.0,0.03]
[1745916839870,43.79449265,149.01,149.0,0.03]
[1745916846657,32.71095899,149.01,149.0,0.03]
[1745916846848,43.79449265,149.01,149.0,0.03]
[1745916850679,17.79449265,149.01,149.0,0.03]
[1745916851487,10.7117237,149.01,149.0,0.03]
[1745916852960,17.42268269,149.01,149.0,0.03]
[1745916856482,43.42268269,149.01,149.0,0.03]
[1745916858484,32.71095899,149.01,149.0,0.03]
[1745916858684,82.9,149.03,149.0,11.11353366]
[1745916858985,11.08353366,149.04,149.0,11.11353366]
[1745916859355,11.08353366,149.03,149.0,11.11353366]
[1745916859557,11.08353366,149.03,149.0,0.03]
[1745916862575,17.79359513,149.03,149.0,0.03]
[1745916862977,11.08353366,149.01,149.0,0.03]
[1745916864757,17.79442839,149.02,149.0,0.03]
[1745916879000,11.92527095,149.01,149.0,0.03]
[1745916879567,7.95182097,149.01,149.0,0.03]
[1745916880363,14.66277996,149.01,149.0,0.03]
[1745916883199,40.66277996,149.01,149.0,0.03]
[1745916883403,26.0,149.01,149.0,0.03]
[1745916885601,32.71095899,149.01,149.0,0.03]
[1745916887294,39.82104267,149.01,149.0,0.03]
[1745916895313,39.82104267,149.01,148.98,0.063]
[1745916895493,32.71095899,149.01,148.98,7.11008368]
[1745916897217,32.71095899,149.01,148.97,7.11008368]
[1745916898218,39.82104267,149.01,148.97,7.11008368]
[1745916898714,39.82104267,149.01,148.96,20.48008368]
[1745916899289,39.82104267,149.01,148.96,7.14008368]
[1745916899501,39.82104267,149.01,148.96,0.03]
[1745916899701,39.82104267,149.01,148.97,7.11008368]
[1745916899898,32.71095899,149.01,148.97,7.11008368]
[1745916900101,39.82104267,149.01,148.97,7.11008368]
[1745916907218,39.82104267,149.01,148.96,7.14008368]
[1745916907917,39.82104267,149.01,148.96,0.03]
[1745916907918,7.11008368,148.98,148.96,0.03]
[1745916908905,13.8225131,148.98,148.96,0.03]
[1745916909604,7.11008368,148.98,148.96,0.03]
[1745916910020,90.01008368,149.0,148.96,7.14008368]
[1745916910327,82.9,149.0,148.97,7.11008368]
[1745916910490,82.9,149.0,148.96,7.14008368]
[1745916911218,82.9,149.0,148.96,13.85297181]
[1745916911899,82.9,149.0,148.97,7.11008368]
[1745916913322,82.9,149.0,148.97,13.82264603]
[1745916917101,23.13863816,149.05,148.99,7.11008368]
[1745916917102,82.9,149.05,148.99,7.11008368]
[1745916917300,0.063,149.07,149.04,7.11008368]
[1745916917502,0.063,149.07,149.04,13.8194154]
[1745916917698,0.063,149.07,149.06,7.11008368]
[1745916917934,0.063,149.07,149.05,7.11008368]
[1745916918443,0.063,149.07,149.06,7.11008368]
[1745916919534,0.063,149.07,149.06,11.09618618]
[1745916920932,0.063,149.07,149.05,11.09618618]
[1745916921830,0.063,149.07,149.06,11.09618618]
[1745916924021,13.46210244,149.08,149.06,17.80489408]
[1745916924229,0.063,149.08,149.07,40.84202122]
[1745916924436,0.063,149.08,149.07,29.74583504]
[1745916926144,0.063,149.08,149.07,36.4540929]
[1745916927234,0.063,149.08,149.07,42.7555929]
[1745916927436,0.03,149.13,149.07,44.3583929]
[1745916927630,0.03,149.13,149.12,18.64964886]
[1745916927954,0.03,149.16,149.14,18.64964886]
[1745916928120,0.03,149.16,149.14,57.08638993]
[1745916929426,0.03,149.16,149.14,17.80129547]
[1745916931342,0.03,149.16,149.14,47.54713051]
[1745916931643,0.03,149.16,149.15,12.43666276]
[1745916932329,0.03,149.16,149.15,11.09618618]
[1745916932922,0.03,149.16,149.13,27.91490088]
[1745916932923,0.03,149.16,149.13,6.70545709]
[1745916933123,0.03,149.16,149.15,11.09618618]
[1745916935845,0.03,149.16,149.13,18.64964886]
[1745916936042,0.03,149.16,149.15,11.09618618]
[1745916936348,0.03,149.16,149.12,13.84]
[1745916936541,0.03,149.16,149.15,11.09618618]
[1745916937748,0.03,149.16,149.14,6.70497314]
[1745916937930,0.03,149.16,149.15,11.09618618]
[1745916938124,0.03,149.16,149.14,6.70497314]
[1745916938447,0.03,149.16,149.15,11.09618618]
[1745916938649,0.03,149.16,149.13,6.7055589]
[1745916938850,0.03,149.16,149.15,11.09618618]
[1745916941562,0.03,149.16,149.12,13.84]
[1745916941853,0.03,149.16,149.14,11.09618618]
[1745916942654,0.03,149.16,149.12,20.54582748]
[1745916942827,0.03,149.16,149.14,11.09618618]
[1745916943188,0.03,149.16,149.13,11.09618618]
[1745916943360,0.03,149.16,149.15,29.74583504]
[1745916943833,0.03,149.16,149.15,36.45049477]
[1745916946859,0.03,149.16,149.15,11.09618618]
[1745916947364,0.03,149.16,149.15,64.31298095]
[1745916947534,0.033,149.17,149.16,66.84202122]
[1745916947939,0.033,149.17,149.16,73.54623146]
[1745916948361,0.033,149.17,149.16,62.45004528]
[1745916948572,0.033,149.17,149.16,17.80039642]
[1745916949065,0.033,149.17,149.16,47.54623146]
[1745916951259,0.033,149.17,149.16,25.3538591]
[1745916951463,0.033,149.17,149.16,36.45004528]
[1745916951858,0.033,149.17,149.16,47.54623146]
[1745916952160,0.03,149.21,149.17,18.64964886]
[1745916952369,0.03,149.21,149.2,29.74583504]
[1745916953340,0.03,149.21,149.2,36.4482479]
[1745916953844,0.03,149.21,149.2,17.79859904]
[1745916954164,0.03,149.21,149.2,11.09618618]
[1745916955563,0.03,149.21,149.2,17.79859904]
[1745916956663,0.03,149.21,149.2,11.09618618]
[1745916959274,0.03,149.21,149.19,6.70282077]
[1745916959275,0.03,149.21,149.19,11.09618618]
[1745916959440,0.03,149.21,149.18,11.09618618]
[1745916959640,11.12618618,149.21,149.15,21.86465001]
[1745916959939,11.12618618,149.21,149.17,11.09618618]
[1745916960469,11.09618618,149.19,149.15,11.09618618]
[1745916960837,1.5932,149.2,149.16,11.09618618]
[1745916961037,12.68938618,149.2,149.16,11.09618618]
[1745916962071,1.5932,149.2,149.16,11.09618618]
[1745916963073,11.09618618,149.19,149.13,41.16]
[1745916963272,11.09618618,149.19,149.15,11.09618618]
[1745916963646,11.09618618,149.19,149.14,6.70510929]
[1745916964073,11.09618618,149.19,149.15,11.09618618]
[1745916964571,11.09618618,149.19,149.15,17.80079822]
[1745916964753,12.68938618,149.2,149.16,11.09618618]
[1745916964959,1.5932,149.2,149.16,11.09618618]
[1745916965279,12.68938618,149.2,149.15,6.70461204]
[1745916965453,12.68938618,149.2,149.15,17.80079822]
[1745916966073,12.68938618,149.2,149.16,11.09618618]
[1745916966859,19.39180166,149.2,149.16,11.09618618]
[1745916969583,11.09618618,149.18,149.13,15.16]
[1745916969880,11.09618618,149.18,149.13,26.25618618]
[1745916970680,17.79951281,149.18,149.13,32.96174399]
[1745916971283,17.79951281,149.18,149.13,26.25618618]
[1745916971588,11.09618618,149.17,149.13,15.16]
[1745916973074,32.70332663,149.18,149.13,26.25618618]
[1745916973279,43.79951281,149.18,149.13,26.25618618]
[1745916973483,11.09618618,149.17,149.13,26.25618618]
[1745916975477,26.0,149.18,149.14,11.09618618]
[1745916975674,26.0,149.18,149.15,11.09618618]
[1745916975859,43.79952102,149.18,149.14,11.09618618]
[1745916976058,43.79952102,149.18,149.13,21.86524435]
[1745916976259,43.79952102,149.18,149.13,32.96143053]
[1745916976473,37.09618618,149.18,149.14,11.09618618]
[1745916977083,26.0,149.18,149.14,11.09618618]
[1745916977562,26.0,149.18,149.14,17.80109135]
[1745916978063,26.0,149.18,149.14,6.70490517]
[1745916978367,26.0,149.18,149.14,17.80109135]
[1745916981186,100.69917877,149.19,149.14,17.80109135]
[1745916982879,11.09618618,149.18,149.14,17.80109135]
[1745916983692,82.9,149.19,149.15,11.09618618]
[1745916984188,82.9,149.19,149.16,11.09618618]
[1745916984374,26.0,149.2,149.16,11.09618618]
[1745916986384,37.09618618,149.2,149.16,17.80031594]
[1745916986894,11.09618618,149.19,149.15,6.70464291]
[1745916987093,11.09618618,149.19,149.15,17.80082909]
[1745916987808,0.03,149.21,149.18,11.09618618]
[1745916988088,0.03,149.21,149.2,55.74583504]
[1745916988289,0.03,149.21,149.2,57.08578724]
[1745916988492,0.03,149.21,149.2,63.7882001]
[1745916990802,0.03,149.21,149.2,93.7882001]
[1745916992008,1e-08,149.23,149.21,18.64964886]
[1745916992167,0.03,149.28,149.25,18.64964886]
[1745916992363,0.03,149.28,149.26,47.00583504]
[1745916992697,1e-08,149.28,149.27,44.64964886]
[1745916992868,1e-08,149.28,149.27,49.80200192]
[1745916993067,0.03,149.35,149.3,44.64964886]
[1745916993287,0.03,149.35,149.3,74.87903921]
[1745916993671,0.03,149.35,149.31,18.64964886]
[1745916993869,0.03,149.35,149.33,18.64964886]
[1745916994393,0.03,149.35,149.34,31.08472215]
[1745916994965,0.03,149.35,149.34,19.98853597]
[1745916995173,0.03,149.35,149.34,48.18610833]
[1745916995382,0.03,149.35,149.34,42.44716467]
[1745916995584,0.03,149.35,149.34,68.03137646]
[1745916995998,0.03,149.36,149.35,18.64964886]
[1745916996177,10.93793885,149.44,149.38,26.0]
[1745916996388,8.2558,149.46,149.38,26.0]
[1745916996777,8.2558,149.46,149.35,44.64964886]
[1745916997106,26.0,149.44,149.35,44.64964886]
[1745916997408,26.0,149.44,149.36,6.69523299]
[1745916997582,26.0,149.44,149.4,17.67087754]
[1745916997787,26.0,149.44,149.36,6.69523299]
[1745916997983,26.0,149.44,149.4,17.67087754]
[1745916998306,82.9,149.45,149.41,17.67087754]
[1745916998804,34.2558,149.46,149.38,17.67087754]
[1745916999098,34.2558,149.46,149.42,17.67087754]
[1745916999486,34.2558,149.46,149.36,6.69523299]
[1745916999487,17.67087754,149.43,149.36,6.69523299]
[1745916999803,17.67087754,149.45,149.41,17.67087754]
[1745916999976,51.92667754,149.46,149.41,17.67087754]
[1745917000308,17.67087754,149.44,149.39,17.67087754]
[1745917000476,17.67087754,149.44,149.4,17.67087754]
[1745917000678,17.67087754,149.45,149.37,18.64964886]
[1745917000979,34.2558,149.46,149.37,18.64964886]
[1745917001178,27.643,149.46,149.37,18.64964886]
[1745917001387,17.67087754,149.45,149.38,6.69433659]
[1745917001577,27.643,149.46,149.39,17.67087754]
[1745917001897,27.643,149.46,149.39,18.64964886]
[1745917002077,27.643,149.46,149.42,17.67087754]
[1745917002488,45.31387754,149.46,149.39,18.64964886]
[1745917002686,45.31387754,149.46,149.42,17.67087754]
[1745917002890,17.67087754,149.46,149.38,32.69433659]
[1745917003094,17.67087754,149.45,149.41,17.67087754]
[1745917003400,6.69016181,149.48,149.4,17.67087754]
[1745917003721,17.67087754,149.45,149.4,17.67087754]
[1745917004478,26.0,149.42,149.35,4.71823168]
[1745917004678,25.33981067,149.48,149.33,20.29504886]
[1745917004679,26.0,149.43,149.33,20.29504886]
[1745917004905,17.67087754,149.41,149.33,20.29504886]
[1745917005093,17.67087754,149.41,149.37,17.67087754]
[1745917005909,32.69080504,149.46,149.4,17.67087754]
[1745917006077,17.67087754,149.45,149.37,26.0]
[1745917006276,32.69080504,149.46,149.37,26.0]
[1745917006474,17.67087754,149.45,149.41,17.67087754]
[1745917007078,17.67087754,149.43,149.39,17.67087754]
[1745917007277,17.67087754,149.42,149.37,17.67087754]
[1745917008224,17.67087754,149.41,149.35,6.69566845]
[1745917008589,17.67087754,149.41,149.37,17.67087754]
[1745917008784,17.67087754,149.41,149.35,6.69566845]
[1745917009002,17.67087754,149.41,149.37,17.67087754]
[1745917009308,17.67087754,149.42,149.38,17.67087754]
[1745917009820,17.67087754,149.41,149.36,17.67087754]
[1745917010021,17.67087754,149.42,149.37,17.67087754]
[1745917010192,17.67087754,149.42,149.35,25.34531731]
[1745917010193,17.67087754,149.41,149.35,6.69566845]
[1745917010378,17.67087754,149.38,149.34,42.45087754]
[1745917010579,84.4488,149.42,149.35,17.67087754]
[1745917010894,17.67087754,149.4,149.35,17.67087754]
[1745917011281,17.67087754,149.4,149.34,6.69601644]
[1745917011482,84.4488,149.42,149.34,6.69601644]
[1745917011681,17.67087754,149.41,149.34,6.69601644]
[1745917011977,102.11967754,149.42,149.37,17.67087754]
[1745917012293,102.11967754,149.42,149.34,6.69601644]
[1745917012489,102.11967754,149.42,149.37,17.67087754]
[1745917012799,84.4488,149.42,149.37,17.67087754]
[1745917013004,17.67087754,149.41,149.34,25.34577849]
[1745917013196,17.67087754,149.4,149.36,17.67087754]
[1745917013596,17.67087754,149.4,149.34,6.69612963]
[1745917013909,17.67087754,149.4,149.35,17.67087754]
[1745917014209,17.67087754,149.4,149.35,24.36643577]
[1745917014388,17.67087754,149.4,149.35,17.67087754]
[1745917014897,17.67087754,149.4,149.34,6.6960351]
[1745917015106,17.67087754,149.4,149.35,17.67087754]
[1745917015311,17.67087754,149.39,149.34,6.6960351]
[1745917015513,82.9,149.4,149.33,17.67087754]
[1745917015699,17.67087754,149.39,149.32,87.59695303]
[1745917015896,17.67087754,149.38,149.32,87.59695303]
[1745917016114,17.67087754,149.38,149.34,17.67087754]
[1745917016521,82.9,149.44,149.37,17.67087754]
[1745917016700,82.9,149.44,149.36,1.587]